bitfinex-derivatives/quotes_SOLF0:USTF0_20250212
["timestamp","ask_amount","ask_price","bid_price","bid_amount"]
[1739375313657,1.5387,192.32,192.19,23.39766926]
[1739375313856,5.2007,192.29,192.22,23.39766926]
[1739375314056,5.2007,192.29,192.24,0.03467404]
[1739375315055,1.5387,192.32,192.24,0.03467404]
[1739375315862,3.0723,192.38,192.25,23.39766926]
[1739375316061,4.579,192.38,192.25,23.39766926]
[1739375316360,4.579,192.38,192.3,0.03826257]
[1739375317460,23.39766926,192.33,192.18,5.2034]
[1739375317661,23.39766926,192.29,192.13,23.39766926]
[1739375317962,3.1737,192.28,192.13,23.39766926]
[1739375318158,5.2018,192.26,192.17,5.2038]
[1739375318561,0.03550102,192.23,192.2,0.03770304]
[1739375320562,5.23780102,192.23,192.2,0.03770304]
[1739375320758,5.23780102,192.23,192.15,5.2043]
[1739375321358,0.03550102,192.23,192.16,38.01669762]
[1739375321562,0.03550102,192.23,192.19,38.01669762]
[1739375321761,3.1737,192.28,192.19,38.01669762]
[1739375321959,0.03771008,192.23,192.21,5.2026]
[1739375322161,0.03771008,192.23,192.19,0.03904057]
[1739375323067,5.24031008,192.23,192.19,0.03904057]
[1739375323266,0.03771008,192.23,192.19,0.03904057]
[1739375323568,38.0544077,192.23,192.07,38.01669762]
[1739375323863,5.2038,192.18,192.11,5.2055]
[1739375324274,5.2041,192.17,192.11,5.2055]
[1739375324468,0.03452642,192.16,192.13,0.03551573]
[1739375325667,0.03452642,192.16,192.14,5.2048]
[1739375326770,0.03452642,192.16,192.13,0.03551573]
[1739375328972,5.23872642,192.16,192.13,0.03551573]
[1739375329264,0.03452642,192.16,192.13,0.03551573]
[1739375329968,0.03452642,192.16,192.15,5.2045]
[1739375332175,0.03452642,192.16,192.15,43.22119762]
[1739375332373,1.5703,192.25,192.2,5.203]
[1739375332567,1.5703,192.25,192.12,38.01669762]
[1739375332767,1.5703,192.25,192.08,38.01669762]
[1739375333471,0.03938934,192.18,192.15,0.03410278]
[1739375336174,0.03938934,192.18,192.05,38.01669762]
[1739375336379,38.01669762,192.2,192.05,38.01669762]
[1739375336973,5.2044,192.16,192.09,5.206]
[1739375337180,38.01669762,192.2,192.05,38.01669762]
[1739375337370,0.03287849,192.14,192.11,0.0358138]
[1739375338674,0.03287849,192.14,192.02,38.01669762]
[1739375338874,5.2053,192.12,192.07,5.2066]
[1739375339775,1.5117,192.14,192.02,38.01669762]
[1739375339972,0.03871215,192.11,192.08,0.03344976]
[1739375340374,0.03871215,192.11,191.98,56.20110386]
[1739375340576,5.2068,192.07,192.02,5.2079]
[1739375341682,0.03484173,192.06,192.03,0.03916845]
[1739375342187,0.03484173,192.06,192.03,5.24676845]
[1739375342578,0.03484173,192.06,192.03,0.03916845]
[1739375342987,0.03484173,192.06,192.04,23.43349519]
[1739375343681,0.03484173,192.06,192.03,0.03916845]
[1739375344392,0.03484173,192.06,191.97,5.2091]
[1739375344681,23.43349519,192.05,191.93,5.2103]
[1739375344886,3.1097,192.04,191.93,5.2103]
[1739375345088,5.2086,192.0,191.92,7.13313512]
[1739375345389,5.2086,192.0,191.94,5.2099]
[1739375345689,0.03515025,191.98,191.94,0.03837083]
[1739375346782,5.2094,191.97,191.94,0.03837083]
[1739375347289,0.03515025,191.98,191.94,0.03837083]
[1739375347490,5.2099,191.96,191.94,0.03837083]
[1739375347691,0.03515025,191.98,191.9,5.2112]
[1739375347890,0.03515025,191.98,191.91,5.211]
[1739375348091,23.43349519,192.02,191.84,30.56663031]
[1739375348292,23.43349519,191.99,191.84,30.56663031]
[1739375348684,0.03399378,191.93,191.9,0.03830969]
[1739375349782,5.24459378,191.93,191.9,0.03830969]
[1739375350391,0.03399378,191.93,191.9,0.03830969]
[1739375351589,0.03399378,191.93,191.9,5.24940969]
[1739375351990,0.03399378,191.93,191.9,0.03830969]
[1739375354295,5.211,191.91,191.9,0.03830969]
[1739375354792,5.2117,191.89,191.84,5.2126]
[1739375355887,0.03482176,191.88,191.85,0.03377397]
[1739375356391,5.24672176,191.88,191.85,0.03377397]
[1739375356892,5.2122,191.87,191.85,0.03377397]
[1739375357296,0.03482176,191.88,191.85,0.03377397]
[1739375358096,5.2121,191.87,191.85,0.03377397]
[1739375358798,0.03482176,191.88,191.85,0.03377397]
[1739375358799,5.2123,191.86,191.85,0.03377397]
[1739375360596,5.2128,191.85,191.81,5.2137]
[1739375360901,5.2128,191.85,191.75,23.43349519]
[1739375361200,5.2134,191.83,191.72,23.43349519]
[1739375361793,0.03282293,191.79,191.78,5.2145]
[1739375363999,5.2124,191.86,191.82,5.2133]
[1739375364997,5.2122,191.87,191.83,5.213]
[1739375365195,0.03438573,191.86,191.83,5.213]
[1739375365698,5.24668573,191.86,191.82,5.25350933]
[1739375366002,0.03438573,191.86,191.82,0.04010933]
[1739375368092,0.03438573,191.86,191.85,5.2126]
[1739375369004,5.2108,191.92,191.87,5.2119]
[1739375369199,4.6361,191.97,191.87,23.43349519]
[1739375369406,4.6361,191.97,191.92,5.2107]
[1739375369808,4.6361,191.97,191.84,23.43349519]
[1739375370003,4.6361,191.97,191.89,0.0370692]
[1739375370208,0.03388638,191.92,191.89,0.0370692]
[1739375371508,0.03388638,191.92,191.9,5.2112]
[1739375372007,0.03388638,191.92,191.89,0.0370692]
[1739375372907,5.24468638,191.92,191.89,0.0370692]
[1739375373809,0.03388638,191.92,191.79,7.13313512]
[1739375374108,23.43349519,191.96,191.79,7.13313512]
[1739375374607,5.2122,191.87,191.79,7.13313512]
[1739375375108,0.03441546,191.85,191.81,0.03600384]
[1739375375605,0.03441546,191.85,191.81,23.46949903]
[1739375377112,0.03441546,191.85,191.84,5.2129]
[1739375377312,0.03441546,191.85,191.84,28.64639519]
[1739375377611,5.2107,191.93,191.87,5.2119]
[1739375377811,3.0919,191.97,191.87,5.2119]
[1739375378007,3.0919,191.97,191.84,23.43349519]
[1739375378607,3.0919,191.97,191.89,5.24672143]
[1739375378608,0.03723783,191.92,191.89,5.24672143]
[1739375379403,0.03723783,191.92,191.9,5.211]
[1739375381105,11.13670738,192.07,191.9,46.86699038]
[1739375381309,11.13670738,192.07,191.95,23.43349519]
[1739375381512,23.43349519,192.11,191.95,23.43349519]
[1739375381713,207.03736311,192.16,191.95,23.43349519]
[1739375381714,0.95732947,192.1,191.95,23.43349519]
[1739375381909,23.43349519,192.14,191.98,23.43349519]
[1739375382210,0.95710981,192.13,191.98,23.43349519]
[1739375382410,0.0393805,192.08,192.04,0.03391278]
[1739375382615,23.43349519,192.11,191.95,23.43349519]
[1739375382812,0.03894356,192.08,192.04,0.03827682]
[1739375383411,5.2072,192.05,192.04,0.03827682]
[1739375385321,5.2067,192.07,192.04,0.03827682]
[1739375386918,5.2072,192.05,192.04,0.03827682]
[1739375389917,0.03894356,192.08,192.04,0.03827682]
[1739375390917,0.03894356,192.08,192.07,5.2066]
[1739375391223,34.57020257,192.23,192.06,23.43349519]
[1739375391413,5.2046,192.15,192.1,5.2058]
[1739375391618,34.57020257,192.23,192.06,23.43349519]
[1739375391619,23.43349519,192.2,192.06,23.43349519]
[1739375392421,0.03377506,192.15,192.11,0.03996271]
[1739375394124,0.03377506,192.15,192.11,5.24546271]
[1739375395226,0.03377506,192.15,192.14,5.2048]
[1739375396718,0.03377506,192.15,192.12,5.2052]
[1739375398521,0.03377506,192.15,192.14,5.2048]
[1739375399522,0.03377506,192.15,192.11,0.03996271]
[1739375399523,23.43349519,192.3,192.12,23.43349519]
[1739375399721,0.95625605,192.29,192.18,23.43349519]
[1739375399928,6.15622935,192.32,192.18,23.43349519]
[1739375400122,5.2001,192.32,192.25,5.2017]
[1739375400323,208.36859519,192.39,192.24,23.43349519]
[1739375400626,0.95601296,192.38,192.24,23.43349519]
[1739375400826,0.03603415,192.33,192.3,0.03837728]
[1739375401223,5.1982,192.39,192.27,23.43349519]
[1739375401427,0.03358305,192.33,192.3,0.03776894]
[1739375401826,5.1971,192.43,192.33,5.1993]
[1739375402334,0.0393507,192.4,192.3,23.43349519]
[1739375402521,23.43349519,192.39,192.36,0.03826078]
[1739375402725,23.43349519,192.39,192.21,23.43349519]
[1739375402926,5.1994,192.34,192.24,5.2018]
[1739375403127,23.43349519,192.36,192.18,23.43349519]
[1739375404030,0.0365479,192.29,192.25,5.23939195]
[1739375404221,0.0365479,192.29,192.25,0.03769195]
[1739375404424,5.1978,192.4,192.3,5.2003]
[1739375404631,0.03582515,192.29,192.25,0.03963738]
[1739375404830,23.43349519,192.45,192.2,23.43349519]
[1739375405022,5.1964,192.45,192.35,5.199]
[1739375405227,5.1964,192.45,192.35,23.43349519]
[1739375405530,5.1961,192.46,192.36,5.1986]
[1739375405927,0.03664656,192.43,192.39,0.03513709]
[1739375408936,5.23374656,192.43,192.39,0.03513709]
[1739375409231,0.03664656,192.43,192.39,0.03513709]
[1739375410735,0.03664656,192.43,192.4,23.43349519]
[1739375411132,5.1947,192.52,192.4,23.43349519]
[1739375411332,5.1947,192.52,192.44,23.43349519]
[1739375411534,23.43349519,192.59,192.44,23.43349519]
[1739375411732,0.9547711,192.58,192.44,23.43349519]
[1739375411929,0.9547711,192.58,192.41,23.43349519]
[1739375412128,23.43349519,192.56,192.41,23.43349519]
[1739375412331,5.1957,192.48,192.41,23.43349519]
[1739375412529,5.1957,192.48,192.47,0.03939973]
[1739375412730,0.03839787,192.46,192.41,23.43349519]
[1739375412936,0.03839787,192.46,192.41,28.63079519]
[1739375413137,0.03839787,192.46,192.42,0.03476756]
[1739375413937,0.03839787,192.46,192.44,23.43349519]
[1739375416030,0.03839787,192.46,192.45,5.1964]
[1739375416738,5.1948,192.51,192.45,5.1964]
[1739375417333,5.1939,192.55,192.47,23.43349519]
[1739375417534,23.43349519,192.6,192.44,23.43349519]
[1739375417732,5.1951,192.5,192.44,28.62989519]
[1739375418038,5.1951,192.5,192.44,5.1964]
[1739375418233,5.1951,192.5,192.45,0.03988559]
[1739375418436,0.03754525,192.49,192.45,0.03988559]
[1739375419739,5.23294525,192.49,192.45,0.03988559]
[1739375419938,0.03754525,192.49,192.45,0.03988559]
[1739375421038,5.1961,192.46,192.45,0.03988559]
[1739375422140,5.1961,192.46,192.32,23.43349519]
[1739375422141,5.1976,192.41,192.32,23.43349519]
[1739375422639,5.1976,192.41,192.26,0.1806]
[1739375422640,1.646,192.4,192.29,23.43349519]
[1739375423432,0.03767197,192.36,192.33,0.03616802]
[1739375423841,23.43349519,192.54,192.35,23.43349519]
[1739375424143,1.5389,192.47,192.39,23.43349519]
[1739375424935,1.5389,192.47,192.42,5.1969]
[1739375425141,0.03842949,192.45,192.41,0.03634768]
[1739375425838,0.03842949,192.45,192.44,5.1966]
[1739375427940,3.1264,192.5,192.42,23.43349519]
[1739375427941,1.5757,192.5,192.42,23.43349519]
[1739375428135,1.6256,192.56,192.46,23.43349519]
[1739375428438,1.6256,192.56,192.49,23.43349519]
[1739375429043,0.03495099,192.54,192.51,0.03832217]
[1739375430143,0.03495099,192.54,192.53,5.1942]
[1739375431442,3.2003,192.62,192.52,23.43349519]
[1739375431644,1.5747,192.69,192.56,23.43349519]
[1739375431843,1.5625,192.68,192.59,23.43349519]
[1739375432043,5.1907,192.66,192.56,23.43349519]
[1739375432239,1.5625,192.68,192.56,23.43349519]
[1739375432635,1.5625,192.68,192.61,5.1919]
[1739375432836,1.5625,192.68,192.6,0.03584496]
[1739375433045,1.5625,192.68,192.62,23.43349519]
[1739375433240,5.1888,192.73,192.66,5.1907]
[1739375433445,5.1888,192.73,192.65,23.43349519]
[1739375433642,4.6669,192.76,192.59,23.43349519]
[1739375433840,23.43349519,192.72,192.6,5.1923]
[1739375434149,23.43349519,192.72,192.66,0.03506662]
[1739375434542,5.1904,192.67,192.66,0.03506662]
[1739375436047,23.43349519,192.69,192.53,30.45950999]
[1739375436048,23.43349519,192.69,192.53,7.0260148]
[1739375436243,23.43349519,192.65,192.53,7.0260148]
[1739375436440,5.1932,192.57,192.53,7.0260148]
[1739375436647,3.0378,192.64,192.53,7.0260148]
[1739375437144,0.03369844,192.6,192.57,0.03788483]
[1739375437549,5.22599844,192.6,192.57,0.03788483]
[1739375437748,0.03369844,192.6,192.57,0.03788483]
[1739375439547,5.1929,192.58,192.57,0.03788483]
[1739375446649,37.92675988,192.6,192.44,37.89306144]
[1739375446845,3.0378,192.64,192.43,7.0260148]
[1739375446846,37.89306144,192.57,192.43,7.0260148]
[1739375447050,1.526,192.56,192.43,7.0260148]
[1739375447444,3.0127,192.55,192.43,7.0260148]
[1739375447649,37.89306144,192.54,192.43,7.0260148]
[1739375447848,0.036499,192.51,192.47,0.03490192]
[1739375448057,5.1956,192.48,192.47,0.03490192]
[1739375449056,5.1951,192.5,192.47,0.03490192]
[1739375449945,0.036499,192.51,192.47,0.03490192]
[1739375450949,5.1956,192.48,192.47,0.03490192]
[1739375453557,37.92956044,192.51,192.39,5.1978]
[1739375453763,5.1972,192.42,192.39,5.1978]
[1739375454361,5.1977,192.4,192.36,5.1987]
[1739375454863,5.23259668,192.4,192.36,5.23173763]
[1739375455460,5.198,192.39,192.36,0.03303763]
[1739375455764,0.03489668,192.4,192.36,0.03303763]
[1739375455958,5.1985,192.37,192.36,0.03303763]
[1739375456760,5.1985,192.37,192.36,3.763e-05]
[1739375459458,3.1472,192.39,192.36,3.763e-05]
[1739375459852,0.03489668,192.4,192.36,3.763e-05]
[1739375460555,0.03489668,192.4,192.36,37.89309907]
[1739375461756,4.8318,192.53,192.39,37.89306144]
[1739375462153,4.8318,192.53,192.42,37.89306144]
[1739375462355,3.2214,192.53,192.42,37.89306144]
[1739375463065,0.037405,192.49,192.48,5.1956]
[1739375463260,5.1936,192.56,192.45,37.89306144]
[1739375463461,5.1936,192.56,192.47,0.03469953]
[1739375463662,0.03766257,192.5,192.47,0.03469953]
[1739375464166,0.03766257,192.5,192.49,5.1952]
[1739375464365,1.5827,192.59,192.48,37.89306144]
[1739375465267,5.1916,192.63,192.55,5.1935]
[1739375465564,0.03367001,192.61,192.57,0.03737296]
[1739375466466,5.194,192.54,192.47,5.1956]
[1739375466660,37.89306144,192.59,192.43,0.1865]
[1739375466865,37.89306144,192.56,192.43,0.1865]
[1739375467065,37.89306144,192.53,192.42,5.1969]
[1739375467268,37.89306144,192.53,192.36,38.01416144]
[1739375467467,37.89306144,192.5,192.36,0.1211]
[1739375467664,0.03532395,192.46,192.43,0.03809009]
[1739375467867,5.23142395,192.46,192.43,0.03809009]
[1739375468963,0.03532395,192.46,192.43,37.93115153]
[1739375469264,0.03532395,192.46,192.45,5.1964]
[1739375470171,0.03532395,192.46,192.43,5.23489009]
[1739375471070,0.03532395,192.46,192.43,0.03809009]
[1739375471771,5.1965,192.45,192.43,0.03809009]
[1739375471970,0.03532395,192.46,192.38,5.198]
[1739375472570,0.03532395,192.46,192.37,37.89306144]
[1739375472770,1.6057,192.52,192.4,37.89306144]
[1739375473172,0.03669784,192.48,192.44,0.03295289]
[1739375474271,0.03669784,192.48,192.39,5.1977]
[1739375474471,5.1964,192.45,192.39,5.1977]
[1739375474873,5.1964,192.45,192.4,5.1977]
[1739375475272,0.03778146,192.44,192.41,0.03446585]
[1739375476068,0.03778146,192.44,192.28,37.89306144]
[1739375476272,37.89306144,192.44,192.28,37.89306144]
[1739375476473,5.1978,192.4,192.34,5.1991]
[1739375477075,3.179,192.43,192.26,0.3049]
[1739375477278,0.03692788,192.39,192.35,0.03312915]
[1739375477977,0.03692788,192.39,192.38,5.1983]
[1739375478184,0.03692788,192.39,192.35,0.03312915]
[1739375478185,3.1405,192.48,192.37,37.89306144]
[1739375478886,5.1959,192.47,192.41,5.1972]
[1739375479079,3.1405,192.48,192.37,37.89306144]
[1739375479286,0.03972239,192.44,192.4,0.03637192]
[1739375480796,0.03972239,192.44,192.31,37.89306144]
[1739375481086,5.1979,192.4,192.34,5.1993]
[1739375481283,37.89306144,192.44,192.28,37.89306144]
[1739375481583,37.89306144,192.47,192.28,37.89306144]
[1739375481983,0.03618801,192.39,192.36,0.03935065]
[1739375482188,3.1405,192.48,192.36,0.03935065]
[1739375482383,0.03752597,192.39,192.36,5.1986]
[1739375482588,37.89306144,192.47,192.4,0.03864395]
[1739375482785,37.89306144,192.44,192.28,37.89306144]
[1739375482990,37.89306144,192.44,192.32,5.1997]
[1739375483487,37.89306144,192.41,192.25,37.89306144]
[1739375484190,0.0375742,192.35,192.31,0.03655026]
[1739375484387,5.1996,192.34,192.31,0.03655026]
[1739375485290,0.0375742,192.35,192.32,37.89306144]
[1739375485689,195.80262646,192.49,192.32,37.89306144]
[1739375485886,5.1966,192.44,192.38,5.1982]
[1739375486792,0.03649701,192.43,192.39,0.03874733]
[1739375487388,0.03649701,192.43,192.39,37.93180877]
[1739375487888,5.1947,192.52,192.45,5.1962]
[1739375488288,5.1947,192.52,192.46,5.196]
[1739375488490,4.7745,192.55,192.42,37.89306144]
[1739375488491,5.194,192.54,192.42,37.89306144]
[1739375488784,184.9351,192.64,192.42,37.89306144]
[1739375488986,3.0409,192.64,192.53,37.89306144]
[1739375489191,0.03609517,192.55,192.53,37.89306144]
[1739375489489,0.03352278,192.56,192.53,37.89306144]
[1739375489684,3.0409,192.64,192.53,37.89306144]
[1739375490791,5.1903,192.68,192.56,37.89306144]
[1739375490991,5.1903,192.68,192.57,0.03399097]
[1739375491197,0.03415296,192.64,192.57,0.03399097]
[1739375491490,0.03415296,192.64,192.57,5.193]
[1739375491695,0.03415296,192.64,192.56,37.89306144]
[1739375491696,0.03415296,192.64,192.59,0.03639653]
[1739375493603,0.03415296,192.64,192.59,37.92945797]
[1739375493894,0.03415296,192.64,192.61,5.1919]
[1739375494196,0.03415296,192.64,192.62,5.1918]
[1739375494692,0.03415296,192.64,192.59,37.92945797]
[1739375494899,6.8362,192.72,192.63,5.1915]
[1739375495596,5.1898,192.7,192.62,37.89306144]
[1739375495986,0.03651931,192.68,192.64,0.03470477]
[1739375496997,0.03651931,192.68,192.65,37.89306144]
[1739375498498,0.03651931,192.68,192.64,0.03470477]
[1739375499704,0.03651931,192.68,192.64,5.22590477]
[1739375499897,47.31682398,192.95,192.67,75.78612288]
[1739375500095,186.5125,192.85,192.76,37.89306144]
[1739375500900,1.5774,192.85,192.79,37.89306144]
[1739375501200,0.03310305,192.82,192.79,37.92977105]
[1739375501598,0.03310305,192.82,192.79,0.03670961]
[1739375503403,0.03310305,192.82,192.8,37.89306144]
[1739375503793,0.03310305,192.82,192.81,5.1867]
[1739375504998,0.03310305,192.82,192.8,5.1869]
[1739375505502,0.03310305,192.82,192.79,0.03670961]
[1739375506700,0.03310305,192.82,192.81,5.1867]
[1739375507700,0.03310305,192.82,192.79,0.03670961]
[1739375509499,5.1869,192.81,192.79,0.03670961]
[1739375509699,0.03310305,192.82,192.79,0.03670961]
[1739375509898,0.03310305,192.82,192.73,0.20149]
[1739375510099,5.1883,192.75,192.73,0.20149]
[1739375510298,39.48096144,192.81,192.62,37.89306144]
[1739375510498,1.5101,192.74,192.62,37.89306144]
[1739375511105,0.03970891,192.7,192.66,5.22850362]
[1739375511503,0.03970891,192.7,192.66,0.03800362]
[1739375513902,5.1901,192.69,192.66,0.03800362]
[1739375517101,0.03970891,192.7,192.66,0.03800362]
[1739375517407,0.03970891,192.7,192.56,37.89306144]
[1739375517797,1.4916,192.71,192.56,37.89306144]
[1739375518307,5.1911,192.65,192.53,37.89306144]
[1739375518608,5.22503336,192.65,192.62,0.03516567]
[1739375518905,5.1911,192.65,192.53,37.89306144]
[1739375519105,5.22436947,192.65,192.62,0.03472384]
[1739375519300,5.1913,192.64,192.58,5.1928]
[1739375519509,37.89306144,192.69,192.53,37.89306144]
[1739375519697,1.5693,192.63,192.62,0.03435972]
[1739375519902,1.5693,192.63,192.5,37.89306144]
[1739375520410,5.1922,192.61,192.54,5.1939]
[1739375520708,1.5693,192.63,192.5,37.89306144]
[1739375521011,0.03566214,192.58,192.55,0.03439921]
[1739375521507,0.03566214,192.58,192.44,38.31966144]
[1739375521701,5.1937,192.55,192.49,5.1952]
[1739375522705,0.03344616,192.54,192.5,0.03889958]
[1739375523611,37.9265076,192.54,192.43,1.03933898]
[1739375523910,5.1951,192.5,192.43,1.03933898]
[1739375524507,5.1951,192.5,192.43,6.23613898]
[1739375524707,5.1951,192.5,192.43,5.1968]
[1739375524904,0.03436422,192.48,192.45,0.03914109]
[1739375525107,0.03436422,192.48,192.4,7.0260148]
[1739375525402,37.92742566,192.48,192.4,7.0260148]
[1739375525802,5.1967,192.44,192.36,5.1986]
[1739375526011,37.89306144,192.48,192.36,5.1986]
[1739375526505,0.03340048,192.44,192.4,0.03618776]
[1739375527111,5.1969,192.43,192.4,0.03618776]
[1739375527907,5.1969,192.43,192.37,5.1985]
[1739375527908,5.1973,192.42,192.35,7.0260148]
[1739375528103,6.7048,192.42,192.35,12.2248148]
[1739375528303,6.7048,192.42,192.35,5.1988]
[1739375528500,5.1977,192.4,192.29,37.89306144]
[1739375528704,1.5075,192.42,192.33,5.1994]
[1739375528913,1.5559,192.41,192.26,37.89306144]
[1739375529104,5.23550453,192.39,192.36,0.03624601]
[1739375529309,0.03730453,192.39,192.26,37.89306144]
[1739375529516,1.5559,192.41,192.36,0.03574994]
[1739375529703,0.03477454,192.34,192.26,37.89306144]
[1739375529906,0.03477454,192.34,192.3,5.2002]
[1739375530106,5.1986,192.37,192.3,5.2002]
[1739375530308,0.03906082,192.34,192.3,5.2002]
[1739375531110,0.03906082,192.34,192.28,0.0378118]
[1739375531305,0.03906082,192.34,192.31,5.2]
[1739375532007,0.03906082,192.34,192.28,0.0378118]
[1739375532211,0.03906082,192.34,192.32,5.1997]
[1739375533012,0.03906082,192.34,192.33,5.1996]
[1739375534110,0.03906082,192.34,192.28,0.0378118]
[1739375534316,0.03906082,192.34,192.28,5.2385118]
[1739375535813,0.03906082,192.34,192.28,0.0378118]
[1739375536016,5.1998,192.33,192.28,0.0378118]
[1739375536215,0.03906082,192.34,192.28,0.0378118]
[1739375537415,5.1998,192.33,192.28,0.0378118]
[1739375537610,0.03906082,192.34,192.28,0.0378118]
[1739375537815,3.1843,192.45,192.38,5.1981]
[1739375538017,1.6376,192.45,192.36,37.89306144]
[1739375538216,1.5447,192.47,192.36,37.89306144]
[1739375538415,1.5447,192.47,192.39,37.89306144]
[1739375538614,3.1843,192.5,192.42,37.89306144]
[1739375538815,1.5447,192.54,192.45,37.89306144]
[1739375539015,0.03893924,192.48,192.47,5.1958]
[1739375539213,3.1843,192.62,192.45,37.89306144]
[1739375539419,2.4993985,192.61,192.45,37.89306144]
[1739375539619,6.1471985,192.6,192.5,5.1949]
[1739375539917,5.1925,192.6,192.5,5.1949]
[1739375540518,0.03698199,192.57,192.53,0.03442184]
[1739375542318,5.23018199,192.57,192.53,0.03442184]
[1739375543916,5.1934,192.56,192.53,0.03442184]
[1739375545322,0.03698199,192.57,192.53,0.03442184]
[1739375547925,5.1938,192.55,192.53,0.03442184]
[1739375548520,37.93004343,192.57,192.38,7.0260148]
[1739375548819,5.1947,192.52,192.46,5.1959]
[1739375549226,37.89306144,192.57,192.39,37.89306144]
[1739375549423,0.95483067,192.56,192.39,37.89306144]
[1739375549624,0.03478578,192.5,192.46,0.03280824]
[1739375549825,5.22988578,192.5,192.46,0.03280824]
[1739375550624,5.1954,192.49,192.46,0.03280824]
[1739375551625,0.03478578,192.5,192.46,0.03280824]
[1739375552417,5.1953,192.49,192.46,0.03280824]
[1739375552824,0.03478578,192.5,192.46,0.03280824]
[1739375553226,0.03478578,192.5,192.47,5.1958]
[1739375553426,0.03478578,192.5,192.46,0.03280824]
[1739375553628,0.03478578,192.5,192.46,23.347117]
[1739375553824,0.03478578,192.5,192.49,5.1953]
[1739375554226,5.1934,192.56,192.5,5.1949]
[1739375555427,0.03420113,192.55,192.51,0.03462152]
[1739375559130,5.1945,192.52,192.51,0.03462152]
[1739375569141,5.1961,192.47,192.39,37.87756226]
[1739375569439,1.4959,192.51,192.36,37.87756226]
[1739375569848,5.1969,192.44,192.36,37.87756226]
[1739375570044,1.5391,192.5,192.38,5.1982]
[1739375570546,0.03868079,192.46,192.42,0.03924006]
[1739375571045,5.197,192.43,192.42,0.03924006]
[1739375574741,5.1965,192.45,192.42,0.03924006]
[1739375574943,0.03868079,192.46,192.42,0.03924006]
[1739375575149,0.03868079,192.46,192.43,5.1968]
[1739375576051,0.03868079,192.46,192.42,0.03924006]
[1739375576850,5.1964,192.45,192.42,0.03924006]
[1739375578448,0.03868079,192.46,192.42,0.03924006]
[1739375578749,0.03868079,192.46,192.43,5.1969]
[1739375584050,1.601,192.55,192.43,23.33544608]
[1739375584560,1.601,192.55,192.4,23.33544608]
[1739375585259,0.03294632,192.49,192.46,0.03500474]
[1739375586053,0.03294632,192.49,192.47,5.1958]
[1739375586254,0.03294632,192.49,192.46,0.03500474]
[1739375586664,1.5721,192.59,192.46,0.03500474]
[1739375586861,1.5721,192.59,192.45,23.33544608]
[1739375587062,24.90754608,192.59,192.42,23.33544608]
[1739375587460,5.1935,192.56,192.42,23.33544608]
[1739375587662,0.03598694,192.52,192.49,0.03582445]
[1739375587863,0.03598694,192.52,192.51,5.1947]
[1739375588059,5.193,192.58,192.49,0.03582445]
[1739375588255,0.03985058,192.53,192.49,0.03582445]
[1739375589160,0.03985058,192.53,192.49,0.01173811]
[1739375589161,5.195,192.5,192.49,0.01173811]
[1739375589357,23.33544608,192.5,192.36,7.0260148]
[1739375589663,23.33544608,192.47,192.36,7.0260148]
[1739375589865,5.1965,192.45,192.38,5.198]
[1739375590061,5.1965,192.45,192.4,7.0260148]
[1739375590463,0.03882447,192.44,192.41,0.03667629]
[1739375597169,0.01442447,192.44,192.43,5.1969]
[1739375597362,3.0335,192.57,192.42,23.33544608]
[1739375597767,3.0335,192.57,192.46,5.1959]
[1739375598571,5.23256782,192.52,192.49,0.0333626]
[1739375599068,0.03786782,192.52,192.49,0.0333626]
[1739375600574,5.195,192.5,192.49,0.0333626]
[1739375600771,0.03786782,192.52,192.43,5.1967]
[1739375600968,0.03786782,192.52,192.36,51.43950529]
[1739375601169,5.1962,192.46,192.4,5.1975]
[1739375601574,23.33544608,192.5,192.36,28.10405921]
[1739375601774,23.33544608,192.5,192.38,5.198]
[1739375601977,0.03323679,192.45,192.41,0.03822989]
[1739375602272,5.1968,192.44,192.41,0.03822989]
[1739375603976,0.03323679,192.45,192.41,0.03822989]
[1739375604176,5.22963679,192.45,192.41,0.03822989]
[1739375606780,5.1968,192.44,192.41,0.03822989]
[1739375607074,0.03323679,192.45,192.41,0.03822989]
[1739375607374,0.03323679,192.45,192.42,5.1969]
[1739375607679,0.03323679,192.45,192.41,0.03822989]
[1739375607877,5.22973679,192.45,192.41,0.03822989]
[1739375609678,0.03323679,192.45,192.41,0.03822989]
[1739375609882,0.03323679,192.45,192.42,5.197]
[1739375610973,0.03323679,192.45,192.41,0.03822989]
[1739375611176,0.03323679,192.45,192.42,23.33544608]
[1739375611376,3.0335,192.57,192.42,23.33544608]
[1739375611880,3.0335,192.57,192.45,23.33544608]
[1739375612271,3.0335,192.57,192.48,23.33544608]
[1739375612478,0.03377322,192.53,192.49,0.03995002]